bitfinex/quotes_SOLUSD_20240613
["timestamp","ask_amount","ask_price","bid_price","bid_amount"]
[1718282537511,100.0,150.46,150.36,45.51]
[1718282537721,100.0,150.46,150.36,0.17]
[1718282537922,100.0,150.46,150.36,45.68]
[1718282539193,386.3,150.47,150.37,0.78254469]
[1718282539399,386.3,150.47,150.4,0.17]
[1718282539602,100.0,150.51,150.4,45.68]
[1718282540023,100.0,150.49,150.4,0.34]
[1718282540228,100.0,150.49,150.39,6.4629]
[1718282540404,106.76236059,150.51,150.4,0.34]
[1718282540725,100.0,150.51,150.4,0.34]
[1718282540923,100.0,150.51,150.4,45.34]
[1718282541114,100.0,150.51,150.41,0.34]
[1718282541316,100.0,150.51,150.41,0.17]
[1718282541505,106.651,150.53,150.41,0.34]
[1718282541911,259.4,150.55,150.44,0.17]
[1718282542108,486.3,150.57,150.46,0.17]
[1718282542109,386.3,150.57,150.46,0.17]
[1718282542421,386.3,150.57,150.45,0.17]
[1718282542729,386.3,150.57,150.46,0.17]
[1718282543025,386.3,150.57,150.46,0.34]
[1718282543204,486.3,150.57,150.47,0.34]
[1718282543406,100.0,150.57,150.48,0.17]
[1718282544236,100.0,150.55,150.47,0.17]
[1718282544407,100.0,150.53,150.43,15.1052]
[1718282544607,0.51,150.56,150.43,15.1052]
[1718282544608,100.0,150.55,150.44,0.68]
[1718282545820,106.7427959,150.57,150.44,45.68]
[1718282546021,100.0,150.57,150.44,45.68]
[1718282546558,100.0,150.57,150.46,0.17]
[1718282546839,100.0,150.57,150.46,45.68]
[1718282547016,100.0,150.59,150.46,45.68]
[1718282547621,100.0,150.59,150.48,0.17]
[1718282547844,100.0,150.59,150.48,45.68]
[1718282548047,100.0,150.59,150.5,0.17]
[1718282548212,100.0,150.59,150.5,45.68]
[1718282548412,100.0,150.59,150.5,45.34]
[1718282548622,100.0,150.59,150.48,0.17]
[1718282548836,100.0,150.59,150.48,65.68]
[1718282549543,359.4,150.61,150.48,65.68]
[1718282549722,100.0,150.59,150.48,65.68]
[1718282550435,100.0,150.59,150.48,45.68]
[1718282550646,100.0,150.56,150.48,45.68]
[1718282550833,100.0,150.56,150.48,45.51]
[1718282551239,100.0,150.56,150.47,6.2373]
[1718282552441,100.0,150.56,150.48,45.51]
[1718282553849,100.0,150.56,150.48,45.34]
[1718282554022,100.0,150.56,150.47,6.2373]
[1718282554957,100.0,150.56,150.48,45.51]
[1718282555124,100.0,150.54,150.47,6.2373]
[1718282555831,100.0,150.56,150.47,6.2373]
[1718282556945,100.0,150.58,150.48,0.17]
[1718282557126,7.69261709,150.6,150.48,0.17]
[1718282557127,100.0,150.6,150.48,45.68]
[1718282557655,100.0,150.58,150.48,45.68]
[1718282561060,100.0,150.6,150.48,45.68]
[1718282561574,259.57,150.61,150.48,45.68]
[1718282561575,100.0,150.58,150.48,45.68]
[1718282562367,100.0,150.56,150.48,45.51]
[1718282562575,100.0,150.56,150.48,45.34]
[1718282563355,100.0,150.58,150.48,45.34]
[1718282563754,100.0,150.58,150.49,0.17]
[1718282563948,266.15515541,150.61,150.51,0.17]
[1718282564254,266.15515541,150.61,150.51,45.68]
[1718282564841,6.75515541,150.61,150.51,45.68]
[1718282570348,100.0,150.6,150.51,0.34]
[1718282570761,6.75515541,150.61,150.51,0.34]
[1718282571472,100.0,150.6,150.5,16.1823]
[1718282573777,100.0,150.58,150.5,16.1823]
[1718282574359,100.0,150.56,150.5,16.1823]
[1718282574580,100.0,150.54,150.5,16.1823]
[1718282575560,100.0,150.56,150.5,16.1823]
[1718282575777,106.74247908,150.58,150.5,16.1823]
[1718282575978,100.0,150.58,150.5,16.1823]
[1718282576183,100.51,150.59,150.5,16.1823]
[1718282576184,100.0,150.56,150.5,16.1823]
[1718282578775,100.0,150.6,150.51,0.17]
[1718282578972,100.0,150.6,150.51,45.34]
[1718282580269,100.0,150.62,150.52,0.17]
[1718282580471,100.0,150.62,150.52,0.68]
[1718282581777,100.0,150.62,150.52,0.51]
[1718282582368,100.0,150.62,150.52,0.34]
[1718282582672,7.69261709,150.65,150.53,2.6279]
[1718282582858,752.351,150.68,150.55,0.17]
[1718282583061,752.351,150.68,150.56,6.0942]
[1718282583260,745.7,150.68,150.59,0.17]
[1718282583481,745.7,150.68,150.59,45.68]
[1718282584774,645.7,150.68,150.59,75.68]
[1718282585889,645.7,150.68,150.59,45.68]
[1718282587575,645.7,150.68,150.61,2.6265]
[1718282587877,645.7,150.68,150.63,0.17]
[1718282588063,649.3040888,150.77,150.63,0.17]
[1718282588064,100.0,150.74,150.65,0.17]
[1718282588263,100.0,150.74,150.65,45.68]
[1718282590187,100.0,150.76,150.65,45.68]
[1718282590496,100.0,150.74,150.65,45.68]
[1718282590875,100.0,150.76,150.65,45.68]
[1718282591290,100.0,150.73,150.65,45.51]
[1718282591485,100.0,150.73,150.65,45.34]
[1718282591793,100.0,150.75,150.65,45.34]
[1718282592293,100.0,150.73,150.65,45.34]
[1718282592489,100.0,150.71,150.64,15.8086]
[1718282592695,100.0,150.73,150.64,15.8086]
[1718282592996,25.38,150.74,150.64,15.8086]
[1718282593693,25.38,150.74,150.65,0.17]
[1718282593903,100.0,150.72,150.64,15.8086]
[1718282595098,100.0,150.68,150.64,15.8086]
[1718282595396,100.0,150.66,150.6,6.361]
[1718282595596,100.0,150.64,150.59,15.2997]
[1718282596209,25.38,150.65,150.59,15.2997]
[1718282596696,100.0,150.64,150.59,15.2997]
[1718282598402,100.0,150.64,150.56,6.2561]
[1718282598589,100.0,150.62,150.56,6.2561]
[1718282598899,0.17,150.65,150.56,6.2561]
[1718282598900,100.0,150.6,150.56,6.2561]
[1718282599107,100.0,150.62,150.56,6.2561]
[1718282599810,100.0,150.65,150.56,6.2561]
[1718282599811,100.0,150.64,150.56,6.2561]
[1718282600188,100.0,150.61,150.56,6.2561]
[1718282600593,100.17,150.63,150.56,6.2561]
[1718282600785,100.0,150.63,150.56,6.2561]
[1718282600984,100.0,150.59,150.56,6.2561]
[1718282601188,100.0,150.61,150.55,15.226]
[1718282601890,100.0,150.59,150.55,15.226]
[1718282602296,100.0,150.57,150.52,6.0393]
[1718282604302,100.0,150.55,150.52,6.0393]
[1718282604508,100.0,150.55,150.5,16.4913]
[1718282605097,107.10188134,150.6,150.5,16.4913]
[1718282605098,100.0,150.57,150.5,16.4913]
[1718282605806,100.0,150.55,150.5,16.4913]
[1718282606510,100.0,150.53,150.5,16.4913]
[1718282606717,100.0,150.53,150.48,6.1413]
[1718282607490,100.0,150.51,150.46,15.2121]
[1718282608216,100.0,150.49,150.44,6.3328]
[1718282608416,100.0,150.47,150.44,6.3328]
[1718282608797,100.0,150.47,150.42,16.2752]
[1718282610093,100.0,150.45,150.42,16.2752]
[1718282610311,100.0,150.47,150.42,16.2752]
[1718282611499,100.0,150.45,150.4,6.6159]
[1718282613493,100.0,150.43,150.37,16.5023]
[1718282614396,100.0,150.41,150.37,16.5023]
[1718282614891,100.0,150.39,150.32,22.1965]
[1718282615305,100.0,150.41,150.32,22.1965]
[1718282615818,0.17,150.42,150.32,22.1965]
[1718282615819,100.0,150.39,150.32,22.1965]
[1718282616402,100.0,150.37,150.32,22.1965]
[1718282616919,100.0,150.32,150.28,22.6574]
[1718282617222,0.17,150.34,150.28,22.6574]
[1718282617223,100.0,150.34,150.28,22.6574]
[1718282617397,100.0,150.32,150.28,22.6574]
[1718282617902,100.0,150.34,150.28,22.6574]
[1718282618107,100.0,150.32,150.25,0.8040888]
[1718282618504,100.0,150.3,150.25,0.8040888]
[1718282619524,100.0,150.26,150.25,0.8040888]
[1718282620403,100.17,150.26,150.25,0.8040888]
[1718282620701,145.68,150.26,150.25,0.8040888]
[1718282620903,165.68,150.26,150.25,0.8040888]
[1718282621117,551.98,150.26,150.25,0.8040888]
[1718282622223,100.0,150.28,150.25,0.8040888]
[1718282622724,100.0,150.26,150.25,0.8040888]
[1718282623104,100.0,150.28,150.25,0.8040888]
[1718282623307,100.0,150.26,150.25,0.8040888]
[1718282623519,100.0,150.28,150.25,0.8040888]
[1718282623724,100.0,150.3,150.25,0.8040888]
[1718282624303,100.0,150.26,150.25,0.8040888]
[1718282624504,100.0,150.28,150.25,0.8040888]
[1718282625618,100.0,150.26,150.25,0.8040888]
[1718282626025,100.0,150.28,150.25,0.8040888]
[1718282626402,100.0,150.26,150.25,0.8040888]
[1718282627700,100.17,150.26,150.25,0.8040888]
[1718282627905,165.68,150.26,150.25,0.8040888]
[1718282628328,181.2976,150.26,150.25,0.8040888]
[1718282628527,281.2976,150.26,150.25,0.8040888]
[1718282630238,181.2976,150.26,150.25,0.8040888]
[1718282630613,281.2976,150.26,150.25,0.8040888]
[1718282631552,100.0,150.16,150.1,31.48313366]
[1718282631747,0.17,150.25,150.1,31.48313366]
[1718282631748,100.0,150.18,150.1,31.48313366]
[1718282631912,100.0,150.16,150.1,31.48313366]
[1718282632229,100.0,150.18,150.1,31.48313366]
[1718282632814,100.0,150.15,150.1,31.48313366]
[1718282633014,100.0,150.17,150.1,31.48313366]
[1718282633845,100.17,150.19,150.1,31.48313366]
[1718282634151,100.0,150.21,150.1,31.48313366]
[1718282634326,100.0,150.19,150.1,31.48313366]
[1718282635942,100.0,150.16,150.1,31.48313366]
[1718282636736,100.0,150.14,150.1,31.48313366]
[1718282636950,100.0,150.12,150.1,9.82553366]
[1718282637623,6.92339007,150.16,150.1,9.82553366]
[1718282637827,100.0,150.17,150.1,9.82553366]
[1718282638224,100.0,150.2,150.1,9.82553366]
[1718282638624,100.0,150.22,150.11,15.0217]
[1718282638820,100.0,150.22,150.13,6.4468]
[1718282639527,745.7,150.24,150.13,6.4468]
[1718282639742,486.3,150.24,150.13,6.4468]
[1718282640544,486.3,150.24,150.14,45.34]
[1718282641265,386.3,150.24,150.15,0.17]
[1718282641421,386.3,150.24,150.15,0.34]
[1718282641626,386.3,150.24,150.16,0.34]
[1718282642339,100.0,150.23,150.16,0.17]
[1718282642539,100.0,150.23,150.13,6.4468]
[1718282643047,386.3,150.24,150.13,6.4468]
[1718282643228,386.3,150.24,150.14,45.0]
[1718282643838,100.0,150.25,150.14,45.0]
[1718282644421,100.0,150.27,150.14,45.0]
[1718282644749,100.0,150.23,150.14,45.0]
[1718282645047,100.0,150.23,150.13,6.4468]
[1718282645248,106.91599996,150.26,150.13,6.4468]
[1718282645249,100.0,150.21,150.13,6.4468]
[1718282645449,100.0,150.19,150.13,6.4468]
[1718282646534,100.0,150.21,150.13,6.4468]
[1718282647256,100.0,150.25,150.13,6.4468]
[1718282647557,100.0,150.25,150.14,0.34]
[1718282647723,6.91599996,150.26,150.13,6.4468]
[1718282647724,100.0,150.23,150.13,6.4468]
[1718282648048,100.0,150.25,150.14,45.68]
[1718282648247,6.91599996,150.26,150.14,48.1442]
[1718282648423,6.91599996,150.26,150.14,45.68]
[1718282648623,100.0,150.25,150.15,20.0]
[1718282649024,100.0,150.23,150.13,6.4468]
[1718282649330,6.91599996,150.26,150.14,0.17]
[1718282649549,6.91599996,150.26,150.16,0.17]
[1718282649751,100.0,150.26,150.16,0.68]
[1718282649925,100.0,150.26,150.15,16.406]
[1718282650123,100.0,150.26,150.16,0.17]
[1718282650335,100.0,150.28,150.16,0.68]
[1718282650632,100.0,150.28,150.16,48.144]
[1718282650936,100.0,150.28,150.16,45.68]
[1718282651250,6.651,150.29,150.16,45.68]
[1718282651427,6.651,150.29,150.16,48.1439]
[1718282651629,100.0,150.28,150.16,45.68]
[1718282651840,100.0,150.25,150.15,16.406]
[1718282652046,100.0,150.28,150.15,16.406]
[1718282652047,100.0,150.23,150.15,16.406]
[1718282652551,100.0,150.25,150.15,16.406]
[1718282652751,106.91607594,150.28,150.15,16.406]
[1718282653128,100.0,150.28,150.15,16.406]
[1718282653433,100.0,150.23,150.15,16.406]
[1718282653634,100.0,150.22,150.15,16.406]
[1718282653831,100.0,150.2,150.15,16.406]
[1718282654432,100.0,150.22,150.15,16.406]
[1718282655626,100.0,150.24,150.15,16.406]
[1718282655829,100.0,150.22,150.15,16.406]
[1718282657153,100.0,150.2,150.15,16.406]
[1718282657350,100.0,150.22,150.15,16.406]
[1718282657752,100.0,150.24,150.15,16.406]
[1718282659851,100.0,150.26,150.15,16.406]
[1718282660050,100.0,150.26,150.16,45.34]
[1718282660261,100.0,150.24,150.15,16.406]
[1718282660455,106.91218914,150.28,150.15,16.406]
[1718282660759,106.91218914,150.28,150.16,45.34]
[1718282660938,100.0,150.26,150.16,45.34]
[1718282661978,106.91218914,150.28,150.16,45.34]
[1718282662158,100.0,150.26,150.16,45.34]
[1718282662548,106.91218914,150.28,150.16,45.34]
[1718282662744,100.0,150.26,150.16,45.34]
[1718282663862,6.91218914,150.28,150.16,45.34]
[1718282663863,106.91218914,150.28,150.16,45.34]
[1718282664074,100.0,150.28,150.16,45.34]
[1718282664278,359.4,150.3,150.17,0.17]
[1718282664450,359.4,150.3,150.17,0.34]
[1718282664765,100.0,150.28,150.17,0.34]
[1718282665141,366.31353987,150.3,150.17,0.34]
[1718282665358,100.0,150.28,150.17,0.34]
[1718282665565,100.0,150.26,150.16,45.34]
[1718282665941,100.0,150.28,150.16,45.34]
[1718282666339,100.0,150.26,150.16,45.34]
[1718282667348,100.0,150.24,150.16,0.17]
[1718282667563,100.0,150.24,150.15,16.406]
[1718282667951,100.0,150.22,150.15,16.406]
[1718282671167,100.0,150.2,150.15,16.406]
[1718282672074,100.0,150.22,150.15,16.406]
[1718282672379,100.0,150.21,150.15,16.406]
[1718282674958,100.0,150.23,150.15,16.406]
[1718282675461,100.0,150.21,150.15,16.406]
[1718282676580,16.406,150.24,150.15,16.406]
[1718282676789,100.0,150.25,150.15,16.406]
[1718282677355,5.29283239,150.27,150.15,16.406]
[1718282677356,100.0,150.27,150.15,16.406]
[1718282677559,105.44720537,150.29,150.16,45.34]
[1718282677857,116.406,150.29,150.16,45.34]
[1718282678254,116.406,150.29,150.18,0.17]
[1718282678489,16.406,150.29,150.2,6.6867]
[1718282678694,386.3,150.31,150.21,45.51]
[1718282679706,100.0,150.32,150.21,45.51]
[1718282679989,100.0,150.32,150.21,75.51]
[1718282680176,100.0,150.34,150.21,75.51]
[1718282680367,100.0,150.32,150.21,75.51]
[1718282680766,100.0,150.34,150.23,16.4148]
[1718282680969,100.0,150.34,150.24,45.17]
[1718282681386,359.4,150.36,150.24,45.17]
[1718282681596,100.0,150.36,150.25,0.17]
[1718282681893,100.0,150.34,150.26,6.0691]
[1718282683298,100.0,150.32,150.23,16.4148]
[1718282683586,100.0,150.3,150.23,16.4148]
[1718282685059,100.0,150.28,150.23,16.4148]
[1718282686065,100.0,150.3,150.23,16.4148]
[1718282687487,100.0,150.32,150.23,16.4148]
[1718282687986,386.3,150.34,150.23,16.4148]
[1718282688499,100.0,150.31,150.23,16.4148]
[1718282688670,100.0,150.33,150.23,16.4148]
[1718282689795,100.0,150.31,150.23,16.4148]
[1718282690096,386.3,150.34,150.23,16.4148]
[1718282690097,100.0,150.29,150.23,16.4148]
[1718282691075,6.89693506,150.32,150.23,16.4148]
[1718282691383,100.0,150.33,150.23,16.4148]
[1718282691791,100.0,150.31,150.23,16.4148]
[1718282692008,100.0,150.29,150.23,16.4148]
[1718282692380,100.0,150.31,150.23,16.4148]
[1718282692580,100.0,150.29,150.23,16.4148]
[1718282693007,20.0,150.3,150.23,16.4148]
[1718282694421,100.0,150.33,150.23,16.4148]
[1718282694590,20.0,150.32,150.23,16.4148]
[1718282694788,20.0,150.34,150.23,16.4148]
[1718282695093,392.99516742,150.37,150.25,6.2178]
[1718282695094,486.3,150.37,150.25,6.2178]
[1718282695294,100.0,150.37,150.26,45.34]
[1718282695495,20.0,150.36,150.28,16.5028]
[1718282695697,20.0,150.37,150.28,16.5028]
[1718282696017,386.3,150.38,150.29,51.192]
[1718282696193,386.3,150.38,150.3,0.34]
[1718282697317,386.3,150.38,150.29,6.362]
[1718282697515,20.0,150.37,150.29,6.192]
[1718282697890,120.0,150.37,150.29,6.192]
[1718282698088,386.3,150.38,150.3,0.34]
[1718282698399,386.3,150.38,150.3,45.34]
[1718282698719,386.3,150.38,150.3,45.17]
[1718282699014,386.3,150.38,150.29,6.192]
[1718282699222,386.3,150.38,150.3,45.34]
[1718282699525,386.3,150.37,150.3,45.34]
[1718282700310,386.3,150.37,150.29,6.192]
[1718282700503,120.0,150.36,150.29,6.192]
[1718282700924,20.0,150.36,150.29,6.192]
[1718282701911,386.3,150.37,150.29,6.192]
[1718282702493,386.3,150.37,150.3,0.17]
[1718282702899,386.3,150.37,150.3,45.68]
[1718282703304,386.3,150.37,150.32,0.17]
[1718282703613,386.3,150.41,150.32,45.68]
[1718282703920,259.4,150.42,150.34,0.17]
[1718282704120,259.4,150.42,150.34,0.51]
[1718282704431,259.4,150.42,150.34,45.51]
[1718282704639,126.610683,150.48,150.37,0.17]
[1718282704918,100.0,150.46,150.38,6.6405]
[1718282705803,20.0,150.45,150.38,6.6405]
[1718282706506,20.0,150.47,150.38,6.6405]
[1718282707311,100.0,150.46,150.38,6.6405]
[1718282707515,20.0,150.45,150.38,6.6405]
[1718282707689,259.4,150.49,150.39,0.17]
[1718282707893,259.4,150.49,150.39,45.68]
[1718282708092,20.0,150.48,150.39,45.68]
[1718282708406,266.0405,150.49,150.39,45.68]
[1718282709314,266.0405,150.49,150.41,0.17]
[1718282709511,259.4,150.49,150.41,0.68]
[1718282710717,259.4,150.49,150.43,0.17]
[1718282710923,259.4,150.49,150.43,45.68]
[1718282711332,100.0,150.56,150.44,6.3516]
[1718282711517,100.0,150.56,150.45,0.17]
[1718282711894,100.0,150.54,150.45,0.17]
[1718282712333,100.0,150.52,150.44,6.3516]
[1718282713613,106.89836206,150.56,150.44,6.3516]
[1718282713614,100.0,150.5,150.44,6.3516]
[1718282713830,100.0,150.48,150.42,16.0138]
[1718282714005,100.0,150.46,150.42,16.0138]
[1718282714205,100.0,150.44,150.38,15.0058]
[1718282714521,20.17,150.47,150.38,15.0058]
[1718282714721,100.0,150.46,150.38,15.0058]
[1718282714926,20.0,150.45,150.38,15.0058]
[1718282715116,100.0,150.44,150.38,15.0058]
[1718282715417,20.0,150.45,150.38,15.0058]
[1718282715827,100.0,150.42,150.38,15.0058]
[1718282716121,100.0,150.44,150.38,15.0058]
[1718282716418,20.0,150.43,150.38,15.0058]
[1718282716920,20.0,150.45,150.38,15.0058]
[1718282717126,100.0,150.5,150.39,0.34]
[1718282717305,100.0,150.52,150.41,0.17]
[1718282717500,100.0,150.52,150.41,0.34]
[1718282717837,100.0,150.52,150.43,6.2237]
[1718282718998,100.0,150.5,150.43,6.2237]
[1718282720134,20.0,150.49,150.43,6.2237]
[1718282722230,100.0,150.48,150.43,6.2237]
[1718282722602,20.0,150.47,150.43,6.2237]
[1718282724046,100.0,150.45,150.39,6.0662]
[1718282724321,20.0,150.44,150.39,6.0662]
[1718282724904,20.0,150.46,150.39,6.0662]
[1718282725235,100.0,150.47,150.39,6.0662]
[1718282725409,20.0,150.46,150.39,6.0662]
[1718282725610,20.0,150.48,150.39,6.0662]
[1718282726133,100.0,150.53,150.4,45.68]
[1718282726599,100.0,150.53,150.4,48.14]
[1718282726799,100.0,150.53,150.4,45.68]
[1718282727216,100.0,150.55,150.41,22.9596]
[1718282727433,645.7,150.56,150.42,68.1396]
[1718282727637,100.0,150.55,150.42,68.1396]
[1718282727822,100.0,150.55,150.42,65.68]
[1718282728153,645.7,150.56,150.42,68.1397]
[1718282728359,100.0,150.53,150.42,65.68]
[1718282728645,20.0,150.52,150.42,45.68]
[1718282728844,100.0,150.51,150.42,45.68]
[1718282729077,20.0,150.5,150.41,22.9596]
[1718282729363,100.0,150.48,150.41,22.9596]
[1718282729521,20.0,150.47,150.41,22.9596]
[1718282730117,0.17,150.51,150.41,22.9596]
[1718282730321,100.0,150.48,150.41,22.9596]
[1718282730530,100.0,150.5,150.41,22.9596]
[1718282730758,20.0,150.49,150.41,22.9596]
[1718282730917,20.0,150.51,150.42,45.51]
[1718282731120,100.0,150.54,150.43,0.17]
[1718282732045,100.0,150.54,150.43,20.17]
[1718282732351,100.0,150.52,150.44,45.34]
[1718282732648,100.0,150.5,150.42,45.17]
[1718282733353,100.0,150.48,150.41,22.9596]
[1718282733724,100.0,150.5,150.41,22.9596]
[1718282734043,20.0,150.49,150.41,22.9596]
[1718282734450,20.0,150.51,150.41,22.9596]
[1718282734651,20.0,150.51,150.42,0.17]
[1718282734871,20.0,150.51,150.42,45.51]
[1718282735080,20.0,150.51,150.42,45.17]
[1718282735451,20.0,150.51,150.43,0.34]
[1718282735746,20.0,150.51,150.42,45.17]
[1718282735973,20.0,150.53,150.43,0.51]
[1718282736274,20.0,150.53,150.44,0.17]
[1718282736760,100.0,150.54,150.44,0.17]
[1718282737068,20.0,150.53,150.44,0.17]
[1718282737647,20.0,150.55,150.44,0.17]
[1718282739566,20.0,150.55,150.46,0.17]
[1718282739741,20.0,150.55,150.46,45.68]
[1718282740550,120.0,150.55,150.46,45.0]
[1718282740872,20.0,150.55,150.46,0.17]
[1718282741086,20.0,150.56,150.47,0.17]
[1718282741247,20.0,150.58,150.48,0.17]
[1718282741550,20.0,150.58,150.48,0.51]
[1718282741757,20.0,150.58,150.49,0.17]
[1718282741961,20.0,150.6,150.5,0.17]
[1718282742279,259.4,150.61,150.51,22.0998]
[1718282742481,2.658167,150.6,150.52,45.17]
[1718282742666,2.658167,150.6,150.52,45.34]
[1718282742866,0.8040888,150.62,150.52,45.34]
[1718282743271,0.8040888,150.62,150.53,0.17]
[1718282743499,0.8040888,150.62,150.53,0.34]
[1718282743671,0.8040888,150.62,150.54,0.34]
[1718282744487,0.8040888,150.62,150.55,0.34]
[1718282744789,0.8040888,150.62,150.56,0.17]
[1718282744973,0.8040888,150.62,150.56,0.51]
[1718282745767,0.8040888,150.62,150.57,22.4587]
[1718282746473,0.8040888,150.62,150.58,45.0]
[1718282746785,0.8040888,150.62,150.59,0.51]
[1718282747465,259.4,150.68,150.62,0.17]
[1718282747800,259.4,150.68,150.62,45.68]
[1718282748301,259.4,150.68,150.62,45.34]
[1718282748510,100.0,150.67,150.61,22.8252]
[1718282748789,259.4,150.68,150.49,10.0]
[1718282748790,100.0,150.65,150.57,21.1687]
[1718282748999,100.0,150.67,150.57,21.1687]
[1718282749490,20.0,150.66,150.57,21.1687]
[1718282749902,100.0,150.65,150.57,21.1687]
[1718282750113,20.0,150.64,150.57,21.1687]
[1718282750793,20.0,150.66,150.57,21.1687]
[1718282750980,100.0,150.69,150.57,21.1687]
[1718282750981,20.17,150.68,150.57,21.1687]
[1718282751181,0.17,150.67,150.57,21.1687]
[1718282751393,20.0,150.68,150.58,45.68]
[1718282751881,20.0,150.7,150.59,1.32625086]
[1718282752077,100.0,150.69,150.58,45.51]
[1718282752284,100.0,150.67,150.58,45.34]
[1718282752506,100.0,150.67,150.58,45.17]
[1718282752507,20.0,150.66,150.58,45.17]
[1718282753193,106.92342432,150.71,150.59,0.34]
[1718282753508,100.0,150.69,150.6,0.17]
[1718282753813,20.0,150.7,150.61,0.17]
[1718282754111,20.0,150.72,150.62,6.068]
[1718282754824,100.0,150.71,150.62,6.068]
[1718282754989,20.0,150.7,150.63,45.0]
[1718282755981,20.17,150.73,150.63,45.0]
[1718282756202,20.34,150.73,150.63,45.0]
[1718282756431,100.0,150.72,150.63,45.0]
[1718282756890,20.0,150.71,150.63,45.0]
[1718282757997,20.0,150.73,150.63,45.0]
[1718282758626,100.0,150.72,150.63,45.0]
[1718282759115,20.0,150.71,150.63,45.0]
[1718282759989,100.0,150.73,150.63,45.0]
[1718282760490,100.0,150.7,150.62,6.068]
[1718282760689,100.0,150.68,150.62,6.068]
[1718282761126,120.0,150.72,150.62,6.068]
[1718282761593,100.0,150.68,150.62,6.068]
[1718282761805,0.17,150.69,150.62,6.068]
[1718282761806,0.34,150.69,150.62,6.068]
[1718282762009,20.0,150.69,150.62,6.068]
[1718282762412,20.0,150.72,150.63,45.0]
[1718282762615,120.0,150.72,150.62,6.068]
[1718282762893,100.0,150.69,150.62,6.068]
[1718282763131,20.0,150.68,150.62,6.068]
[1718282763818,100.0,150.67,150.62,6.068]
[1718282764128,20.0,150.66,150.62,6.068]
[1718282764490,100.17,150.65,150.6,16.4577]
[1718282764789,20.0,150.64,150.6,16.4577]
[1718282765004,20.0,150.66,150.6,16.4577]
[1718282765407,486.3,150.73,150.6,16.4577]
[1718282765605,100.0,150.71,150.6,16.4577]
[1718282765826,100.0,150.71,150.61,45.17]
[1718282766029,100.0,150.69,150.6,16.4577]
[1718282766213,100.0,150.71,150.61,45.0]